Cogmind - Beta 10.2 @@@ ROGUE MODE // 2021.01.08 @ 19:09:53 Player: WayneKnight Result: Destroyed by D-53 Grenadier with Mini Grenade Launcher Performance ------------- Evolutions (1) 500 Regions Visited (4) 800 Robots Destroyed (67) 335 Value Destroyed (1763) 1763 Prototype IDs (5) 100 Alien Tech Used (0) 0 Bonus (7) 7 TOTAL SCORE: 3505 Bonus ------- Follower Combat Kills 7 Cogmind --------- Core Integrity 0/400 Matter 257/300 Energy 80/100 System Corruption 0% Temperature Cool (0) Movement Treading (180) Ox1 Location -9/Mines Parts ------- > --- POWER (1) -------- (None) > --- PROPULSION (3) --- Light Treads Light Treads > --- UTILITY (3) ------ Large Storage Unit Large Storage Unit Large Storage Unit > --- WEAPON (2) ------- Improved Grenade Launcher > --- INVENTORY (22) --- Improved Ion Engine Light Treads Light Treads Light Treads Light Treads Large Storage Unit High-capacity Matter Pod (200) Hardened Light Armor Plating Improved EM Shotgun Ion Cannon Heavy Assault Rifle Heavy Assault Rifle Improved Assault Rifle Improved Assault Rifle Improved Assault Rifle Improved Assault Rifle Improved Grenade Launcher Improved Grenade Launcher Mining Laser Mining Laser Peak State ------------ > --- POWER ------------ Improved Ion Engine > --- PROPULSION ------- Light Treads Light Treads Light Treads > --- UTILITY ---------- Large Storage Unit Large Storage Unit Large Storage Unit > --- WEAPON ----------- Improved Assault Rifle Improved Assault Rifle > --- INVENTORY -------- Improved Ion Engine Light Treads Light Treads Light Treads Light Treads Light Treads Light Treads Large Storage Unit High-capacity Matter Pod Hardened Light Armor Plating Improved EM Shotgun Ion Cannon Heavy Assault Rifle Heavy Assault Rifle Improved Assault Rifle Improved Assault Rifle Light Cannon Improved Grenade Launcher Improved Grenade Launcher Improved Grenade Launcher Mining Laser Mining Laser [Rating: 18] Favorites ----------- Power Ion Engine Engine Ion Engine Propulsion Light Treads Treads Light Treads Leg Aluminum Leg Utility Large Storage Unit Storage Large Storage Unit Weapon Light Assault Rifle Energy Gun Small Laser Energy Cannon Beam Cannon Ballistic Gun Light Assault Rifle Ballistic Cannon Light Cannon Launcher Grenade Launcher Build | -11 -10 -10 -9 -9 ------- Run | Scr Mat Min Mat Min Slots Evolved 2 | . . . 2 . Power . | . . . . . Propulsion 1 | . . . 1 . Utility 1 | . . . 1 . Weapon . | . . . . . Parts Attached 43 | . 14 . 26 3 Power 3 | . 1 . 2 . Engine 3 | . 1 . 2 . Core . | . . . . . Reactor . | . . . . . Propulsion 14 | . 5 . 7 2 Treads 14 | . 5 . 7 2 Leg . | . . . . . Wheel . | . . . . . Hover . | . . . . . Flight . | . . . . . Utility 4 | . 3 . 1 . Device . | . . . . . Storage 4 | . 3 . 1 . Processor . | . . . . . Hackware . | . . . . . Protection . | . . . . . Artifact . | . . . . . Weapon 22 | . 5 . 16 1 Energy Gun 2 | . 2 . . . Energy Cannon 6 | . 1 . 5 . Ballistic Gun 6 | . 1 . 5 . Ballistic Cannon 1 | . . . 1 . Launcher 7 | . 1 . 5 1 Special Weapon . | . . . . . Impact Weapon . | . . . . . Slashing Weapon . | . . . . . Piercing Weapon . | . . . . . Special Melee Weapon . | . . . . . Unidentified Prototypes . | . . . . . Parts Lost 9 | . 3 . 1 5 Power 2 | . 1 . . 1 Propulsion 3 | . . . . 3 Utility . | . . . . . Weapon 4 | . 2 . 1 1 Highest Loss Streak 5 | . 3 . 1 5 Average Slot Usage (%) 99 | . 97 100 99 99 Engine 12 | . 14 14 10 10 Treads 30 | . 28 28 32 32 Storage 29 | . 25 28 33 33 Energy Gun 1 | . 5 . . . Energy Cannon 10 | . 6 14 11 . Ballistic Gun 13 | . 12 14 10 21 Naked Turns . | . . . . . Heaviest Build 67 | 10 41 41 67 61 Greatest Support 60 | 20 40 40 60 60 Greatest Overweight (x) 1 | . 1 1 1 1 Average Overweight (x) . | . . 1 . 1 Largest Inventory Capacity 22 | 6 16 16 22 22 Average Capacity 18 | 6 14 16 22 22 Most Carried 22 | 6 16 16 22 22 Average Carried 17 | 6 11 16 20 21 Final Capacity 22 | 6 16 16 22 22 Final Carried 22 | 6 16 16 22 20 Class Distribution -------------------- 57% | Mutant 42% | Hauler-Mutant Dominant Class ---------------- Mutant | -10/Materials Mutant | -10/Mines Hauler-Mutant | -9/Materials Hauler-Mutant | -9/Mines Resources | -11 -10 -10 -9 -9 ----------- Run | Scr Mat Min Mat Min Matter Collected 973 | 200 156 61 506 50 Remotely . | . . . . . Salvage Created 1866 | 86 307 213 1190 70 Parts 122 | 1 24 10 76 11 Haulers Intercepted 1 | . . . 1 . Recyclers Shooed 1 | . 1 . . . Parts Field Recycled . | . . . . . Retrieved Matter . | . . . . . Parts Self-Destructed . | . . . . . Prevented . | . . . . . Kills | -11 -10 -10 -9 -9 ------- Run | Scr Mat Min Mat Min Combat Hostiles Destroyed 60 | . 10 7 36 7 Guns 18 | . 6 1 6 5 Cannons 20 | . . 4 16 . AOE 22 | . 4 2 14 2 Classes Destroyed 12 | 1 4 1 5 1 Worker 2 | . . . 2 . Builder 2 | . 2 . . . Tunneler 1 | . . 1 . . Hauler 1 | . . . 1 . Recycler 1 | 1 . . . . Operator 1 | . . . 1 . Watcher 1 | . 1 . . . Swarmer 21 | . 3 3 10 5 Grunt 28 | . 7 4 17 . Duelist 1 | . . . 1 . Sentry 8 | . . . 8 . Assembled 2 | . . . . 2 Best Kill Streak 5 | 1 5 3 5 5 Combat Bots Only 5 | . 3 3 5 5 Max Kills in Single Turn 2 | 1 2 1 2 2 Gunslinging . | . . . . . Exploded 2 | . 1 1 2 2 Melee . | . . . . . Uniques/NPCs Destroyed . | . . . . . Combat | -11 -10 -10 -9 -9 -------- Run | Scr Mat Min Mat Min Damage Taken 2741 | . 520 221 1089 911 Core 484 | . 66 17 209 192 Absorbed by Shields . | . . . . . Core Remaining (%) 83 | 100 . 66 . . Volleys Fired 142 | 5 30 21 75 11 Largest 2 | 2 2 2 2 2 Hottest 120 | 90 90 80 120 46 Shots Fired 256 | 9 54 35 138 20 Gun 149 | 9 44 14 64 18 Cannon 87 | . 4 21 62 . Launcher 20 | . 6 . 12 2 Special . | . . . . . Kinetic 114 | . 17 14 65 18 Thermal 113 | 9 22 21 61 . Explosive 20 | . 6 . 12 2 Electromagnetic 9 | . 9 . . . Robot Hit Streak 24 | 4 8 11 24 16 Robot Miss Streak 5 | 2 5 3 3 3 Penetration Max . | . . . . . Secondary Targets 3 | . . . 1 2 Max Gunslinging Chain 1 | . . . 1 1 Shots Hit Robots 169 | 6 32 22 95 14 Core Hits 103 | 2 23 10 59 9 Critical Hits 3 | . . . 3 . Critical Kills 2 | . . . 2 . Critical Parts Destroyed 1 | . . . 1 . Melee Attacks . | . . . . . Impact . | . . . . . Slashing . | . . . . . Piercing . | . . . . . Sneak Attacks . | . . . . . Combat Hostiles . | . . . . . Follow-up Attacks . | . . . . . Damage Inflicted 4475 | 72 823 413 2826 341 Guns 1267 | 72 281 76 672 166 Cannons 1379 | . 52 274 1053 . Explosions 1799 | . 485 52 1095 167 Melee . | . . . . . Ramming 30 | . 5 11 6 8 Kinetic 1016 | . 82 76 692 166 Thermal 1699 | 72 268 326 1033 . Explosive 1645 | . 383 . 1095 167 Electromagnetic 85 | . 85 . . . Impact . | . . . . . Slashing . | . . . . . Piercing . | . . . . . Highest Corruption . | . . . . . Average Corruption . | . . . . . Corruption Purged . | . . . . . Overload Shots . | . . . . . Overflow Damage 185 | . 100 7 78 . Projectiles 39 | . . 7 32 . Explosions 146 | . 100 . 46 . Melee . | . . . . . Knockbacks 2 | . . 1 1 . Impact 1 | . . 1 . . Kinetic 1 | . . . 1 . Secondary . | . . . . . Self-Inflicted Damage 144 | . 110 . . 34 Shots 3 | . 2 . . 1 Rammed 7 | . 1 4 1 1 Targets Rammed 9 | . 1 5 2 1 Kicked . | . . . . . Crushed 2 | . . 1 1 . Highest Temperature 243 | 130 127 243 221 . Average Temperature 69 | 61 46 103 67 . Received Heat Transfer 654 | . 183 84 387 . Effects 3 | . . 3 . . Energy Bleed 1 | . . 1 . . Interference 2 | . . 2 . . Siege Activations . | . . . . . Robots Corrupted . | . . . . . Combat Hostiles . | . . . . . Parts Fried . | . . . . . Impact Corruptions . | . . . . . Robots Melted . | . . . . . Combat Hostiles . | . . . . . Parts Melted 7 | 2 . 3 2 . Heat Transferred 3015 | 198 497 655 1665 . Parts Sabotaged . | . . . . . Parts Stolen . | . . . . . Parts Stripped . | . . . . . Power Chain Reactions 1 | . 1 . . . Missiles Intercepted . | . . . . . Alert | -11 -10 -10 -9 -9 ------- Run | Scr Mat Min Mat Min Peak Influence 378 | 5 276 145 378 293 Initial 122 | . 3 7 . 122 Average 101 | . 82 17 196 134 Maximum Alert Level 1 | . 1 . 1 1 Low Security (%) 77 | 100 87 100 42 84 Level 1 22 | . 12 . 57 15 Level 2 . | . . . . . Level 3 . | . . . . . Level 4 . | . . . . . Level 5 . | . . . . . High Security . | . . . . . Max Security . | . . . . . Squads Dispatched 7 | . 2 . 5 . Investigation 4 | . 1 . 3 . Extermination . | . . . . . Reinforcement 3 | . 1 . 2 . Assault . | . . . . . Garrison . | . . . . . Intercept . | . . . . . Construction Impeded . | . . . . . Haulers Reinforced . | . . . . . Stealth | -11 -10 -10 -9 -9 --------- Run | Scr Mat Min Mat Min Distress Signals 4 | . 1 1 2 . Communications Jammed . | . . . . . Distress Signals . | . . . . . Times Spotted 110 | . 20 6 55 29 Peak Tracking Total 20 | . 3 3 7 20 Tactical Retreats 3 | . . 1 1 1 Traps | -11 -10 -10 -9 -9 ------- Run | Scr Mat Min Mat Min Traps Triggered 4 | . 1 . 3 . Indirectly . | . . . . . Trap Hack Attempts . | . . . . . Triggered . | . . . . . Disarmed . | . . . . . Reprogrammed . | . . . . . Reused . | . . . . . Traps Extracted . | . . . . . Installed . | . . . . . Triggered 1 | . . 1 . . Machines | -11 -10 -10 -9 -9 ---------- Run | Scr Mat Min Mat Min Machines Disabled 7 | . 1 3 3 . Max in Single Turn 1 | . 1 1 1 . Machines Sabotaged . | . . . . . Garrisons Compromised . | . . . . . Overloaded Fab Kills . | . . . . . Fab Network Shutdowns . | . . . . . Hacking | -11 -10 -10 -9 -9 --------- Run | Scr Mat Min Mat Min Machines Accessed 21 | . 10 . 11 . Terminals 16 | . 8 . 8 . Fabricators . | . . . . . Repair Stations 3 | . 1 . 2 . Recycling Units 1 | . 1 . . . Scanalyzers 1 | . . . 1 . Garrison Access . | . . . . . Total Hacks 77 | . 33 . 44 . Successful 52 | . 23 . 29 . Failed 25 | . 10 . 15 . Catastrophic 3 | . 1 . 2 . Database Lockouts . | . . . . . Manual 35 | . 16 . 19 . Terminals 52 | . 24 . 28 . Fabricators . | . . . . . Repair Stations 14 | . 8 . 6 . Recycling Units 1 | . 1 . . . Scanalyzers 10 | . . . 10 . Garrison Access . | . . . . . Terminal Hacks 17 | . 9 . 8 . Part Schematic 2 | . 1 . 1 . Robot Analysis 2 | . 2 . . . Prototype ID Bank 3 | . 3 . . . Emergency Access Points 1 | . . . 1 . Alert Level 4 | . . . 4 . Unreport Threat 2 | . . . 2 . Locate Traps 3 | . 3 . . . Fabricator Hacks . | . . . . . Repair Station Hacks 14 | . 8 . 6 . Scan Component 7 | . 4 . 3 . Repair 7 | . 4 . 3 . Recycling Unit Hacks 1 | . 1 . . . Report Inventory 1 | . 1 . . . Scanalyzer 10 | . . . 10 . Insert Component 5 | . . . 5 . Analyze 5 | . . . 5 . Garrison Access Hacks . | . . . . . Unauthorized Hacks 10 | . 5 . 5 . Terminals 10 | . 5 . 5 . Track 3 | . 2 . 1 . Botnet 6 | . 3 . 3 . Operators 1 | . . . 1 . Fabricators . | . . . . . Repair Stations . | . . . . . Recycling Units . | . . . . . Scanalyzers . | . . . . . Garrison Access . | . . . . . Data Cores Recovered . | . . . . . Used . | . . . . . Hacking Detections 18 | . 9 . 9 . Full Trace Events 1 | . 1 . . . Feedback Events . | . . . . . Feedback Blocked . | . . . . . Robot Schematics Acquired . | . . . . . Robots Built . | . . . . . Matter . | . . . . . Time . | . . . . . Total Robot Build Rating . | . . . . . Part Schematics Acquired 7 | . 1 . 6 . Parts Built . | . . . . . Matter . | . . . . . Time . | . . . . . Total Part Build Rating . | . . . . . Parts Repaired 7 | . 4 . 3 . Time 200 | . 104 . 96 . Parts Recycled . | . . . . . Recycled Matter . | . . . . . Retrieved Matter . | . . . . . Retrieved Components . | . . . . . Parts Scanalyzed 5 | . . . 5 . Part Schematics Acquired 5 | . . . 5 . Parts Damaged . | . . . . . Bothacking | -11 -10 -10 -9 -9 ------------ Run | Scr Mat Min Mat Min Used RIF Installer . | . . . . . Robots Hacked . | . . . . . Non-combat . | . . . . . Combat . | . . . . . Robot Hacks Applied . | . . . . . Relay Couplers Released . | . . . . . Robots Rewired . | . . . . . Allies Hacked . | . . . . . Hacks Repelled . | . . . . . Allies | -11 -10 -10 -9 -9 -------- Run | Scr Mat Min Mat Min Total Allies 1 | . . . . 1 Largest Group 1 | . . . . 1 Highest-Rated Group 31 | . . . . 31 Highest-Rated Ally 31 | . . . . 31 Total Orders . | . . . . . Ally Attacks 2 | . . . . 2 Total Damage 21 | . . . . 21 Kills 1 | . . . . 1 Allies Corrupted . | . . . . . Allies Melted . | . . . . . Intel | -11 -10 -10 -9 -9 ------- Run | Scr Mat Min Mat Min Robot Analysis Total 2 | . 2 . . . Derelict Logs Recovered 2 | . . 1 . 1 Drone Launches . | . . . . . Drone Recoveries . | . . . . . Exploration | -11 -10 -10 -9 -9 ------------- Run | Scr Mat Min Mat Min Turns Passed 6350 | 14 1317 2307 2092 620 Spaces Moved 2897 | 1 626 992 954 324 Core . | . . . . . Treads 2896 | . 626 992 954 324 Legs 1 | 1 . . . . Wheels . | . . . . . Hover . | . . . . . Flight . | . . . . . Fastest Speed 120 | 120 160 180 160 180 Average Speed 177 | 120 173 180 176 180 Slowest Speed 180 | 120 180 180 180 180 Overloaded Moves . | . . . . . Propulsion Burnouts . | . . . . . Robots Hopped . | . . . . . Cave-ins Triggered . | . . . . . Exploration Rate (%) 68 | 2 99 97 86 60 Regions Visited 4 Branch Regions 2 Pre-discovered Areas 1 | . . 1 . . Known Exits Taken . | . . . . . Unknown Exits Taken 4 | 1 1 1 1 . Scrap Searched 2 | . . 2 . . Spaces Dug . | . . . . . Terrain Destroyed 129 | . 60 10 44 15 Melee . | . . . . . Projectile 3 | . . . 3 . AOE 126 | . 60 10 41 15 Terrain Rammed . | . . . . . Walls Destroyed . | . . . . . Machines Disabled . | . . . . . Actions | -11 -10 -10 -9 -9 --------- Run | Scr Mat Min Mat Min Total 3865 | 5 802 1479 1239 340 Wait 710 | . 111 458 140 1 Move 2893 | . 625 991 953 324 Hop . | . . . . . Pick Up 40 | . 16 2 22 . Fast Attach 6 | . 2 . 4 . Attach 8 | . 3 . 3 2 Detach 1 | . 1 . . . Swap 29 | . 9 . 19 1 Drop 27 | . 4 2 21 . Fire 142 | 5 30 21 75 11 Melee . | . . . . . Ram . | . . . . . Kick . | . . . . . Crush 9 | . 1 5 2 1 Escape Stasis . | . . . . . Rewire . | . . . . . Trap . | . . . . . Miscellaneous . | . . . . . Route ------- -11/Scrapyard -10/Materials (discovered 4 exits: *Mat x3 / [*Min]) -10/Mines (discovered 2 exits: *Mat x2) -9/Materials (discovered 4 exits: [*Mat x2] / [*Min x2]) -9/Mines (discovered 2 exits: [*Exi] / [*Zio]) History --------- Turn | Location | Event 15 | -11/Scrapyard | Discovered new exit (range 0) 15 | -11/Scrapyard | Entered Materials 184 | -10/Materials | Discovered new exit (range 4) 215 | -10/Materials | Lost 3 parts (1p2w) 317 | -10/Materials | Build established: Mutant 345 | -10/Materials | Discovered new exit (range 16) 538 | -10/Materials | Discovered new exit (range 16) 772 | -10/Materials | Repaired Lgt. Treads 800 | -10/Materials | Repaired Grenade Launcher 827 | -10/Materials | Repaired Lgt. Treads 854 | -10/Materials | Repaired Lgt. Treads 892 | -10/Materials | Discovered new exit (range 8) 1332 | -10/Materials | Entered Mines 1706 | -10/Mines | Discovered new exit (range 11) 1947 | -10/Mines | Learned location of Zion (-7) 2013 | -10/Mines | Found a hidden stash of uninstalled traps 2590 | -10/Mines | Discovered new exit (range 7) 3639 | -10/Mines | Entered Materials 3639 | -9/Materials | Evolved 2 slots: Propulsion x1, Utility x1 3935 | -9/Materials | Build established: Hauler-Mutant 3940 | -9/Materials | Discovered new exit (range 9) 4283 | -9/Materials | Discovered new exit (range 8) 4343 | -9/Materials | Repaired Ion Cannon 4411 | -9/Materials | Discovered new exit (range 15) 4739 | -9/Materials | Repaired Imp. Ion Engine 4766 | -9/Materials | Repaired Lgt. Treads 4843 | -9/Materials | Discovered new exit (range 16) 5477 | -9/Materials | Core integrity fell below 50% 5731 | -9/Materials | Entered Mines 5783 | -9/Mines | A Derelict revealed a hidden shortcut to a safe place 6050 | -9/Mines | Learned 4 Materials zone layouts 6060 | -9/Mines | Escorted by a lone wolf Derelict 6301 | -9/Mines | Deemed a non-threat by the Exiles lab entrance 6301 | -9/Mines | Discovered new exit (range 5) 6330 | -9/Mines | Assembled infested the area 6335 | -9/Mines | Assisted by a Guerilla fighting off Assembled 6339 | -9/Mines | Core integrity fell below 20% 6351 | -9/Mines | Destroyed by D-53 Grenadier with Mini Grenade Launcher Last Messages --------------- coming from, and they're closing on this area, come on!" 06335_ TZ-243(h) destroyed. 06336_ The unstable cave ceiling collapses. 06336_ Lgt. Treads destroyed. 06336_ K-01 Serf destroyed. 06338_ The unstable cave ceiling collapses. 06338_ Flexi-carbon Leg crushed. 06338_ The unstable cave ceiling collapses. 06339_ Lgt. Treads destroyed. 06341_ as-08195 destroyed. 06343_ Imp. Assault Rifle destroyed. 06343_ Imp. Ion Engine destroyed. 06346_ The unstable cave ceiling collapses. 06347_ Lgt. Treads destroyed. 06347_ as-54396 destroyed. 06349_ as-46195 destroyed. 06349_ as-57459 destroyed. 06350_ as-61803 destroyed. 06350_ as-51683 destroyed. 06351_ The unstable cave ceiling collapses. Map ----- +----------------------------------------------------+ | | | | | | | ?????????????????????????????????????????? | | ?????????????????????????????????????????? | | ?????????????????????????????????????????? | | ?????????????????????????????????????????? | | ??????????????##?????????????????????????? | | ?????????????? ?????????????????????????? | | ?????????????? ?????????????????????????? | | ?????????????# ?????????????????????????? | | ?????????????# ?????????????????????????? | | ?????????????#% ?????? #?????????????????? | | ????????????? ????? #?????????????????? | | ?????????????? a##??? ####??????????????? | | ?????????????? a #??? ???????????????? | | ?????????????? a #?? ????????????????? | | ??????????????# #?? ??????????????????? | | ???????????####dd### ???????????????????? | | ???????????# # a#??????? #???????????? | | ??????????## #?????? #??????????? | | ??????????# # ##???? ?????????? | | ??????????# # ###?# ?????????? | | ??????????# ## #?????????? | | ??????????# #a #??????????? | | ??????????## @ a #??????????? | | ??????????## a #???????????? | | ???????????## a ##???????????? | | ????????????## ###????????????? | | ?????????????### ##??????????????? | | ???????????###### #??????##???????? | | ??????#